[Event "Polofinale MCR junioru 2023"]
[Site "Czech Republic"]
[Date "2023.11.11"]
[Round "1.31"]
[White "Andrle, Filip"]
[Black "Mrazek, Adam"]
[Result "1-0"]
[TimeControl "90 min per 40 moves + 15 min + 30 sec / move from move 1"]
[WhiteFideId "23718749"]
[BlackFideId "23725010"]
[WhiteElo "2005"]
[BlackElo "1643"]

1. e4 {[%clk 01:30:52]} {[%emt 00:00:06]} d6 {[%clk 01:30:09]} {[%emt
00:00:52]} 2. d4 {[%clk 01:30:10]} {[%emt 00:01:12]} g6 {[%clk 01:29:57]}
{[%emt 00:00:42]} 3. Nc3 {[%clk 01:29:10]} {[%emt 00:01:29]} Bg7 {[%clk
01:29:47]} {[%emt 00:00:40]} 4. Be3 {[%clk 01:27:57]} {[%emt 00:01:43]} a6
{[%clk 01:29:15]} {[%emt 00:01:03]} 5. a4 {[%clk 01:24:47]} {[%emt 00:03:40]}
Nc6 {[%clk 01:27:15]} {[%emt 00:02:29]} 6. f3 {[%clk 01:16:06]} {[%emt
00:09:10]} e5 {[%clk 01:25:28]} {[%emt 00:02:18]} 7. d5 {[%clk 01:13:31]}
{[%emt 00:03:05]} Nce7 {[%clk 01:25:26]} {[%emt 00:00:33]} 8. h4 {[%clk
01:11:19]} {[%emt 00:02:42]} Nf6 {[%clk 01:07:18]} {[%emt 00:18:37]} 9. g4
{[%clk 01:06:06]} {[%emt 00:05:42]} c6 {[%clk 00:46:21]} {[%emt 00:21:28]} 10.
a5 {[%clk 00:58:25]} {[%emt 00:08:10]} O-O {[%clk 00:34:25]} {[%emt 00:12:27]}
11. Bb6 {[%clk 00:52:45]} {[%emt 00:06:10]} Qe8 {[%clk 00:34:04]} {[%emt
00:00:51]} 12. Bc4 {[%clk 00:48:24]} {[%emt 00:04:51]} cxd5 {[%clk 00:10:01]}
{[%emt 00:24:33]} 13. Nxd5 {[%clk 00:46:42]} {[%emt 00:02:11]} Nexd5 {[%clk
00:09:22]} {[%emt 00:01:10]} 14. Bxd5 {[%clk 00:46:48]} {[%emt 00:00:23]} Qe7
{[%clk 00:09:27]} {[%emt 00:00:25]} 15. Ne2 {[%clk 00:40:45]} {[%emt 00:06:33]}
Nxd5 {[%clk 00:07:13]} {[%emt 00:02:45]} 16. Qxd5 {[%clk 00:40:43]} {[%emt
00:00:31]} Be6 {[%clk 00:07:22]} {[%emt 00:00:22]} 17. Qd2 {[%clk 00:40:22]}
{[%emt 00:00:51]} f5 {[%clk 00:06:07]} {[%emt 00:01:45]} 18. gxf5 {[%clk
00:40:15]} {[%emt 00:00:36]} gxf5 {[%clk 00:06:16]} {[%emt 00:00:22]} 19. O-O-O
{[%clk 00:39:14]} {[%emt 00:01:30]} fxe4 {[%clk 00:02:41]} {[%emt 00:04:05]} 20.
fxe4 {[%clk 00:39:02]} {[%emt 00:00:42]} Rf6 {[%clk 00:01:59]} {[%emt
00:01:12]} 21. Be3 {[%clk 00:36:31]} {[%emt 00:03:01]} Qc7 {[%clk 00:01:10]}
{[%emt 00:01:20]} 22. Bg5 {[%clk 00:34:23]} {[%emt 00:02:37]} Rg6 {[%clk
00:00:41]} {[%emt 00:01:00]} 23. h5 {[%clk 00:31:44]} {[%emt 00:03:08]} Rxg5
{[%clk 00:01:07]} {[%emt 00:00:05]} 24. Qxg5 {[%clk 00:31:58]} {[%emt
00:00:15]} Rc8 {[%clk 00:01:01]} {[%emt 00:00:36]} 25. Nc3 {[%clk 00:31:14]}
{[%emt 00:01:13]} h6 {[%clk 00:01:02]} {[%emt 00:00:30]} 26. Qg3 {[%clk
00:28:56]} {[%emt 00:02:47]} Kh8 {[%clk 00:00:37]} {[%emt 00:00:56]} 27. Qg6
{[%clk 00:25:49]} {[%emt 00:03:37]} Bf7 {[%clk 00:00:33]} {[%emt 00:00:34]} 28.
Qxd6 {[%clk 00:25:50]} {[%emt 00:00:28]} Qxa5 {[%clk 00:00:38]} {[%emt
00:00:26]} 29. Qd7 {[%clk 00:25:07]} {[%emt 00:01:13]} Rc7 {[%clk 00:00:34]}
{[%emt 00:00:35]} 30. Qd8+ {[%clk 00:24:30]} {[%emt 00:01:06]} Kh7 {[%clk
00:00:51]} {[%emt 00:00:13]} 31. Kb1 {[%clk 00:22:14]} {[%emt 00:02:46]} Qc5
{[%clk 00:00:38]} {[%emt 00:00:42]} 32. Rd7 {[%clk 00:19:43]} {[%emt 00:03:01]}
Rxd7 {[%clk 00:00:35]} {[%emt 00:00:34]} 33. Qxd7 {[%clk 00:19:45]} {[%emt
00:00:28]} Qc4 {[%clk 00:00:32]} {[%emt 00:00:33]} 34. Qxb7 {[%clk 00:16:56]}
{[%emt 00:03:18]} Qe6 {[%clk 00:00:33]} {[%emt 00:00:30]} 35. Nd5 {[%clk
00:15:39]} {[%emt 00:01:47]} Be8 {[%clk 00:00:33]} {[%emt 00:00:29]} 36. Rg1
{[%clk 00:15:28]} {[%emt 00:00:40]} Bf7 {[%clk 00:00:33]} {[%emt 00:00:30]} 37.
Rf1 {[%clk 00:14:53]} {[%emt 00:01:05]} Kg8 {[%clk 00:00:34]} {[%emt 00:00:30]}
38. Rf5 {[%clk 00:13:33]} {[%emt 00:01:49]} Be8 {[%clk 00:00:31]} {[%emt
00:00:34]} 39. Qb8 {[%clk 00:12:35]} {[%emt 00:01:27]} Qd7 {[%clk 00:00:36]}
{[%emt 00:00:26]} 40. Nc7 {[%clk 00:07:06]} {[%emt 00:05:59]} Qd1+ {[%clk
00:00:33]} {[%emt 00:00:33]} 41. Ka2 {[%clk 00:07:24]} {[%emt 00:00:11]} Qxc2
{[%clk 00:14:07]} {[%emt 00:02:27]} 42. Qxe8+ {[%clk 00:23:16]} {[%emt
00:00:38]} Kh7 {[%clk 00:14:36]} {[%emt 00:00:01]} 43. Ne6 {[%clk 00:19:22]}
{[%emt 00:04:24]} Qc4+ {[%clk 00:14:05]} {[%emt 00:01:02]} 44. Ka3 {[%clk
00:19:13]} {[%emt 00:00:39]} Qd3+ {[%clk 00:13:58]} {[%emt 00:00:37]} 45. b3
{[%clk 00:19:14]} {[%emt 00:00:28]} Qd6+ {[%clk 00:12:23]} {[%emt 00:02:06]} 46.
Ka4 {[%clk 00:19:22]} {[%emt 00:00:22]} 1-0

[Event "Polofinale MCR junioru 2023"]
[Site "Czech Republic"]
[Date "2023.11.11"]
[Round "1.32"]
[White "Meca, Viktor"]
[Black "Zezula, Jakub"]
[Result "0-1"]
[TimeControl "90 min per 40 moves + 15 min + 30 sec / move from move 1"]
[WhiteFideId "23739800"]
[BlackFideId "23723203"]
[WhiteElo "1642"]
[BlackElo "2002"]

1. e4 {[%clk 01:30:55]} {[%emt 00:00:03]} e5 {[%clk 01:30:54]} {[%emt
00:00:08]} 2. Nf3 {[%clk 01:31:13]} {[%emt 00:00:12]} Nc6 {[%clk 01:31:16]}
{[%emt 00:00:07]} 3. Bb5 {[%clk 01:31:30]} {[%emt 00:00:12]} a6 {[%clk
01:31:40]} {[%emt 00:00:07]} 4. Ba4 {[%clk 01:31:29]} {[%emt 00:00:31]} Nf6
{[%clk 01:31:57]} {[%emt 00:00:13]} 5. O-O {[%clk 01:30:03]} {[%emt 00:01:55]}
Be7 {[%clk 01:32:18]} {[%emt 00:00:09]} 6. Re1 {[%clk 01:26:46]} {[%emt
00:03:48]} b5 {[%clk 01:32:41]} {[%emt 00:00:06]} 7. Bb3 {[%clk 01:27:09]}
{[%emt 00:00:06]} d6 {[%clk 01:33:03]} {[%emt 00:00:09]} 8. c3 {[%clk
01:21:30]} {[%emt 00:06:10]} O-O {[%clk 01:33:26]} {[%emt 00:00:07]} 9. d4
{[%clk 01:21:45]} {[%emt 00:00:15]} Bg4 {[%clk 01:32:30]} {[%emt 00:01:26]} 10.
Be3 {[%clk 01:17:51]} {[%emt 00:04:24]} exd4 {[%clk 01:23:16]} {[%emt
00:09:44]} 11. cxd4 {[%clk 01:18:03]} {[%emt 00:00:17]} Na5 {[%clk 01:23:33]}
{[%emt 00:00:14]} 12. Bc2 {[%clk 01:10:00]} {[%emt 00:08:33]} Nc4 {[%clk
01:19:50]} {[%emt 00:04:12]} 13. Bc1 {[%clk 01:10:22]} {[%emt 00:00:09]} c5
{[%clk 01:15:13]} {[%emt 00:05:06]} 14. b3 {[%clk 01:02:29]} {[%emt 00:08:23]}
Nb6 {[%clk 01:11:51]} {[%emt 00:03:52]} 15. Nbd2 {[%emt 00:06:28]} Rc8 {[%emt
00:07:05]} 16. d5 {[%emt 00:02:32]} Nfd7 {[%emt 00:07:04]} 17. Bb2 {[%clk
00:47:38]} {[%emt 00:00:33]} Bf6 {[%clk 01:03:24]} {[%emt 00:02:36]} 18. Bxf6
{[%clk 00:46:35]} {[%emt 00:01:33]} Qxf6 {[%clk 01:03:44]} {[%emt 00:00:10]} 19.
a4 {[%clk 00:42:33]} {[%emt 00:04:34]} c4 {[%clk 00:56:46]} {[%emt 00:07:28]}
20. bxc4 {[%clk 00:35:25]} {[%emt 00:07:38]} Nxc4 {[%clk 00:56:51]} {[%emt
00:00:25]} 21. Nxc4 {[%clk 00:35:23]} {[%emt 00:00:32]} Rxc4 {[%clk 00:56:15]}
{[%emt 00:01:07]} 22. axb5 {[%clk 00:34:21]} {[%emt 00:01:31]} Ne5 {[%clk
00:52:43]} {[%emt 00:04:01]} 23. Re3 {[%clk 00:31:14]} {[%emt 00:03:37]} Rxc2
{[%clk 00:51:43]} {[%emt 00:01:30]} 24. Qxc2 {[%clk 00:30:56]} {[%emt
00:00:47]} Nxf3+ {[%clk 00:52:06]} {[%emt 00:00:07]} 25. gxf3 {[%clk 00:31:11]}
{[%emt 00:00:16]} Bh3 {[%clk 00:51:53]} {[%emt 00:00:43]} 0-1

[Event "Polofinale MCR junioru 2023"]
[Site "Czech Republic"]
[Date "2023.11.11"]
[Round "1.33"]
[White "Pecka, Jan"]
[Black "Gregor, Alexandr"]
[Result "1-0"]
[TimeControl "90 min per 40 moves + 15 min + 30 sec / move from move 1"]
[WhiteFideId "23712520"]
[BlackFideId "23735813"]
[WhiteElo "1999"]
[BlackElo "1601"]

1. e4 {[%clk 01:31:09]} {[%emt 00:00:10]} c5 {[%clk 01:30:46]} {[%emt
00:00:14]} 2. Nf3 {[%clk 01:31:11]} {[%emt 00:00:27]} Nc6 {[%clk 01:30:58]}
{[%emt 00:00:19]} 3. Bb5 {[%clk 01:31:33]} {[%emt 00:00:07]} e6 {[%clk
01:31:09]} {[%emt 00:00:19]} 4. O-O {[%clk 01:31:01]} {[%emt 00:01:01]} Be7
{[%clk 01:30:48]} {[%emt 00:00:53]} 5. c3 {[%clk 01:28:42]} {[%emt 00:02:49]}
Nf6 {[%clk 01:25:08]} {[%emt 00:06:09]} 6. Re1 {[%clk 01:27:05]} {[%emt
00:02:06]} O-O {[%clk 01:24:28]} {[%emt 00:01:11]} 7. d4 {[%clk 01:23:27]}
{[%emt 00:04:08]} a6 {[%clk 00:59:47]} {[%emt 00:25:12]} 8. Bd3 {[%clk
01:16:49]} {[%emt 00:07:08]} cxd4 {[%clk 00:54:16]} {[%emt 00:06:01]} 9. cxd4
{[%clk 01:14:51]} {[%emt 00:02:27]} d5 {[%clk 00:52:34]} {[%emt 00:02:12]} 10.
e5 {[%clk 01:14:54]} {[%emt 00:00:27]} Nd7 {[%clk 00:52:05]} {[%emt 00:01:00]}
11. Nbd2 {[%clk 01:07:13]} {[%emt 00:08:09]} b5 {[%clk 00:51:10]} {[%emt
00:01:25]} 12. a4 {[%clk 01:01:41]} {[%emt 00:06:03]} bxa4 {[%clk 00:38:34]}
{[%emt 00:13:07]} 13. Qxa4 {[%clk 00:57:21]} {[%emt 00:04:49]} Qc7 {[%clk
00:35:15]} {[%emt 00:03:49]} 14. Qc2 {[%clk 00:53:26]} {[%emt 00:04:24]} h6
{[%clk 00:34:09]} {[%emt 00:01:37]} 15. Nb3 {[%clk 00:44:43]} {[%emt 00:09:13]}
Bb7 {[%clk 00:29:32]} {[%emt 00:05:07]} 16. Bd2 {[%clk 00:43:21]} {[%emt
00:01:51]} Rfc8 {[%clk 00:28:43]} {[%emt 00:01:19]} 17. Na5 {[%clk 00:38:59]}
{[%emt 00:04:52]} Qb6 {[%clk 00:21:15]} {[%emt 00:07:58]} 18. Qa4 {[%clk
00:36:01]} {[%emt 00:03:28]} Nxa5 {[%clk 00:13:36]} {[%emt 00:08:09]} 19. Bxa5
{[%clk 00:36:07]} {[%emt 00:00:23]} Qc6 {[%clk 00:05:31]} {[%emt 00:08:36]} 20.
Qd1 {[%clk 00:36:28]} {[%emt 00:00:10]} Nb6 {[%clk 00:03:43]} {[%emt 00:02:18]}
21. Rc1 {[%clk 00:36:34]} {[%emt 00:00:23]} Nc4 {[%clk 00:01:15]} {[%emt
00:02:58]} 22. b3 {[%clk 00:36:39]} {[%emt 00:00:25]} Qb5 {[%clk 00:01:36]}
{[%emt 00:00:09]} 23. Bc3 {[%clk 00:36:14]} {[%emt 00:00:54]} 1-0

[Event "Polofinale MCR junioru 2023"]
[Site "Czech Republic"]
[Date "2023.11.11"]
[Round "1.34"]
[White "Valdman, Jakub"]
[Black "Vasinek, Martin"]
[Result "1/2-1/2"]
[TimeControl "90 min per 40 moves + 15 min + 30 sec / move from move 1"]
[WhiteFideId "23718196"]
[BlackFideId "392200"]
[WhiteElo "1594"]
[BlackElo "1987"]

1. e4 {[%clk 01:30:57]} {[%emt 00:00:02]} c5 {[%clk 01:30:49]} {[%emt
00:00:11]} 2. Nf3 {[%clk 01:31:22]} {[%emt 00:00:05]} Nc6 {[%clk 01:31:07]}
{[%emt 00:00:11]} 3. d4 {[%clk 01:31:44]} {[%emt 00:00:08]} cxd4 {[%clk
01:31:31]} {[%emt 00:00:06]} 4. Nxd4 {[%clk 01:32:09]} {[%emt 00:00:06]} g6
{[%clk 01:31:44]} {[%emt 00:00:16]} 5. Nc3 {[%clk 01:32:05]} {[%emt 00:00:34]}
Bg7 {[%clk 01:31:54]} {[%emt 00:00:20]} 6. Be3 {[%clk 01:32:19]} {[%emt
00:00:17]} Nf6 {[%clk 01:32:08]} {[%emt 00:00:14]} 7. Be2 {[%clk 01:30:48]}
{[%emt 00:02:02]} O-O {[%clk 01:31:41]} {[%emt 00:00:57]} 8. O-O {[%clk
01:30:35]} {[%emt 00:00:43]} d6 {[%clk 01:29:25]} {[%emt 00:02:45]} 9. h3
{[%clk 01:25:51]} {[%emt 00:05:14]} Bd7 {[%clk 01:28:03]} {[%emt 00:01:51]} 10.
Qd2 {[%clk 01:24:07]} {[%emt 00:02:15]} a6 {[%clk 01:26:44]} {[%emt 00:01:49]}
11. f4 {[%clk 01:19:03]} {[%emt 00:05:35]} b5 {[%clk 01:26:42]} {[%emt
00:00:32]} 12. Bf3 {[%clk 01:15:52]} {[%emt 00:03:41]} Rc8 {[%clk 01:26:30]}
{[%emt 00:00:41]} 13. Nxc6 {[%clk 01:11:02]} {[%emt 00:05:21]} Bxc6 {[%clk
01:26:19]} {[%emt 00:00:41]} 14. Nd5 {[%clk 01:11:01]} Nd7 {[%clk 01:20:30]}
{[%emt 00:06:50]} 15. c3 {[%clk 01:07:45]} Nc5 {[%clk 01:13:20]} {[%emt
00:11:25]} 16. Rad1 {[%clk 00:54:37]} Na4 {[%clk 01:08:48]} {[%emt 00:18:41]}
17. Qf2 {[%clk 00:48:56]} Bxd5 {[%clk 00:59:27]} {[%emt 00:16:03]} 18. Rxd5
{[%clk 00:46:31]} e6 {[%clk 00:57:54]} {[%emt 00:04:58]} 19. Rd2 {[%clk
00:44:59]} Qc7 {[%clk 00:56:47]} {[%emt 00:03:38]} 20. Rfd1 {[%clk 00:38:05]}
Rfd8 {[%clk 00:56:07]} {[%emt 00:08:36]} 21. Be2 {[%emt 00:12:48]} Qb8 {[%clk
00:54:44]} 22. f5 {[%clk 00:25:49]} {[%emt 00:02:21]} e5 {[%clk 00:32:06]}
{[%emt 00:23:08]} 23. Bg4 {[%clk 00:17:54]} {[%emt 00:08:25]} Rc6 {[%clk
00:31:28]} {[%emt 00:01:09]} 24. fxg6 {[%clk 00:14:41]} {[%emt 00:03:43]} fxg6
{[%clk 00:29:24]} {[%emt 00:02:33]} 25. Be6+ {[%clk 00:14:19]} {[%emt
00:00:53]} Kh8 {[%clk 00:29:51]} {[%emt 00:00:03]} 26. Bd5 {[%clk 00:14:16]}
{[%emt 00:00:34]} Rc7 {[%clk 00:27:49]} {[%emt 00:02:31]} 27. Bb3 {[%clk
00:10:28]} {[%emt 00:04:18]} Nc5 {[%clk 00:25:22]} {[%emt 00:02:56]} 28. Bxc5
{[%clk 00:10:11]} {[%emt 00:00:47]} Rf8 {[%clk 00:24:20]} {[%emt 00:01:31]} 29.
Qe3 {[%clk 00:07:13]} {[%emt 00:03:28]} dxc5 {[%clk 00:24:24]} {[%emt
00:00:27]} 30. Bd5 {[%clk 00:06:48]} {[%emt 00:00:56]} h5 {[%clk 00:21:53]}
{[%emt 00:03:01]} 31. Rf2 {[%clk 00:06:09]} {[%emt 00:01:09]} Kh7 {[%clk
00:21:35]} {[%emt 00:00:48]} 32. Rdf1 {[%clk 00:06:13]} {[%emt 00:00:26]} Bh6
{[%clk 00:21:40]} {[%emt 00:00:24]} 33. Qg3 {[%clk 00:05:24]} {[%emt 00:01:19]}
Bf4 {[%clk 00:21:16]} {[%emt 00:00:55]} 34. Qd3 {[%clk 00:05:34]} {[%emt
00:00:19]} c4 {[%clk 00:20:44]} {[%emt 00:01:02]} 35. Qe2 {[%clk 00:05:47]}
{[%emt 00:00:18]} Rcc8 {[%clk 00:20:07]} {[%emt 00:01:07]} 36. Kh1 {[%clk
00:05:30]} {[%emt 00:00:47]} Qd6 {[%clk 00:19:27]} {[%emt 00:01:09]} 37. Rd1
{[%clk 00:04:52]} {[%emt 00:01:09]} Qe7 {[%clk 00:19:21]} {[%emt 00:00:29]} 38.
Rf3 {[%clk 00:02:59]} {[%emt 00:02:31]} g5 {[%clk 00:16:14]} {[%emt 00:03:37]}
39. Rff1 {[%clk 00:01:40]} {[%emt 00:01:48]} g4 {[%clk 00:08:20]} {[%emt
00:08:24]} 40. Kg1 {[%clk 00:00:56]} {[%emt 00:01:15]} Rc7 {[%clk 00:01:28]}
{[%emt 00:07:22]} 41. g3 {[%clk 00:00:34]} {[%emt 00:00:52]} Bxg3 {[%clk
00:14:50]} {[%emt 00:02:37]} 42. hxg4 {[%clk 00:15:16]} {[%emt 00:01:50]} Rxf1+
{[%clk 00:13:26]} {[%emt 00:01:53]} 43. Rxf1 {[%clk 00:15:24]} {[%emt
00:00:23]} Qh4 {[%clk 00:13:40]} {[%emt 00:00:15]} 44. Rf7+ {[%clk 00:13:28]}
{[%emt 00:02:27]} Rxf7 {[%clk 00:13:59]} {[%emt 00:00:11]} 45. Bxf7 {[%clk
00:13:56]} {[%emt 00:00:01]} hxg4 {[%clk 00:13:22]} {[%emt 00:01:07]} 46. Be6
{[%clk 00:13:55]} {[%emt 00:00:31]} Bf4 {[%clk 00:08:53]} {[%emt 00:04:56]} 47.
Bf5+ {[%clk 00:11:14]} {[%emt 00:03:14]} Kh6 {[%clk 00:09:02]} {[%emt
00:00:20]} 48. Qxg4 {[%clk 00:10:13]} {[%emt 00:01:32]} Qxg4+ {[%clk 00:08:17]}
{[%emt 00:01:15]} 49. Bxg4 {[%clk 00:10:38]} {[%emt 00:00:05]} Bc1 {[%clk
00:08:36]} {[%emt 00:00:11]} 50. Bc8 {[%clk 00:10:55]} {[%emt 00:00:13]} Bxb2
{[%clk 00:07:19]} {[%emt 00:01:46]} 51. Bxa6 {[%clk 00:11:16]} {[%emt
00:00:10]} Bxc3 {[%clk 00:07:42]} {[%emt 00:00:06]} 52. Bxb5 {[%clk 00:11:42]}
{[%emt 00:00:04]} Bd4+ {[%clk 00:08:05]} {[%emt 00:00:07]} 53. Kf1 {[%clk
00:12:07]} {[%emt 00:00:05]} c3 {[%clk 00:08:25]} {[%emt 00:00:10]} 54. Bd3
{[%clk 00:12:27]} {[%emt 00:00:10]} 1/2-1/2

[Event "Polofinale MCR junioru 2023"]
[Site "Czech Republic"]
[Date "2023.11.11"]
[Round "1.35"]
[White "Pavlis, Matej"]
[Black "Pistej, Tomas"]
[Result "1-0"]
[TimeControl "90 min per 40 moves + 15 min + 30 sec / move from move 1"]
[WhiteFideId "23735767"]
[BlackFideId "23750740"]
[WhiteElo "1974"]
[BlackElo "1502"]

1. Nf3 {[%clk 01:30:57]} {[%emt 00:00:02]} d5 {[%clk 01:30:53]} {[%emt
00:00:07]} 2. d4 {[%clk 01:30:29]} {[%emt 00:00:59]} Nf6 {[%clk 01:31:08]}
{[%emt 00:00:15]} 3. c4 {[%clk 01:30:37]} {[%emt 00:00:22]} c6 {[%clk
01:31:24]} {[%emt 00:00:13]} 4. Nc3 {[%clk 01:30:57]} {[%emt 00:00:10]} e6
{[%clk 01:31:25]} {[%emt 00:00:29]} 5. g3 {[%clk 01:31:16]} {[%emt 00:00:12]}
Be7 {[%clk 01:30:46]} {[%emt 00:01:08]} 6. Bg2 {[%clk 01:30:00]} {[%emt
00:01:46]} O-O {[%clk 01:31:00]} {[%emt 00:00:16]} 7. O-O {[%clk 01:30:24]}
{[%emt 00:00:07]} a6 {[%clk 01:30:32]} {[%emt 00:00:58]} 8. a4 {[%clk
01:28:42]} {[%emt 00:02:12]} dxc4 {[%clk 01:27:27]} {[%emt 00:03:35]} 9. Ne5
{[%clk 01:28:24]} {[%emt 00:00:48]} Nbd7 {[%clk 01:23:10]} {[%emt 00:04:46]} 10.
Nxc4 {[%clk 01:28:41]} {[%emt 00:00:13]} Nd5 {[%clk 01:17:08]} {[%emt
00:06:32]} 11. a5 {[%clk 01:25:05]} {[%emt 00:04:07]} Bf6 {[%clk 01:04:47]}
{[%emt 00:12:50]} 12. Ne4 {[%clk 01:22:09]} {[%emt 00:03:26]} e5 {[%clk
00:53:14]} {[%emt 00:12:03]} 13. Nxf6+ {[%clk 01:17:49]} {[%emt 00:04:50]} Qxf6
{[%clk 00:52:59]} {[%emt 00:00:45]} 14. e4 {[%clk 01:12:09]} {[%emt 00:06:10]}
Nc7 {[%clk 00:42:49]} {[%emt 00:10:38]} 15. dxe5 {[%clk 01:11:48]} {[%emt
00:00:52]} Qe6 {[%clk 00:40:27]} {[%emt 00:02:52]} 16. b3 {[%clk 01:08:29]}
{[%emt 00:03:50]} Nxe5 {[%clk 00:35:11]} {[%emt 00:05:45]} 17. Nxe5 {[%clk
01:08:42]} {[%emt 00:00:17]} Qxe5 {[%clk 00:35:19]} {[%emt 00:00:22]} 18. Bf4
{[%clk 01:09:10]} {[%emt 00:00:02]} Qe7 {[%clk 00:35:10]} {[%emt 00:00:38]} 19.
Bd6 {[%clk 01:09:32]} {[%emt 00:00:09]} Qd8 {[%clk 00:33:42]} {[%emt 00:01:58]}
20. Bxf8 {[%clk 01:09:44]} {[%emt 00:00:18]} Qxf8 {[%clk 00:33:57]} {[%emt
00:00:15]} 21. Qc2 {[%clk 01:07:16]} {[%emt 00:02:58]} Nb5 {[%clk 00:31:56]}
{[%emt 00:02:32]} 22. f4 {[%clk 01:01:52]} {[%emt 00:05:54]} f5 {[%clk
00:26:05]} {[%emt 00:06:21]} 23. Qc4+ {[%clk 00:56:46]} {[%emt 00:05:36]} Kh8
{[%clk 00:26:17]} {[%emt 00:00:16]} 24. Rad1 {[%clk 00:56:43]} {[%emt
00:00:34]} Qf6 {[%clk 00:24:12]} {[%emt 00:02:35]} 25. Qc5 {[%clk 00:53:55]}
{[%emt 00:03:18]} Be6 {[%clk 00:20:58]} {[%emt 00:03:43]} 26. b4 {[%clk
00:53:07]} {[%emt 00:01:20]} Re8 {[%clk 00:17:22]} {[%emt 00:04:05]} 27. Rfe1
{[%clk 00:52:48]} {[%emt 00:00:49]} g6 {[%clk 00:12:44]} {[%emt 00:05:09]} 28.
exf5 {[%clk 00:52:20]} {[%emt 00:00:58]} 1-0

[Event "Polofinale MCR junioru 2023"]
[Site "Czech Republic"]
[Date "2023.11.11"]
[Round "1.36"]
[White "Kocman, Patrik"]
[Black "Simunek, Jakub Simon"]
[Result "0-1"]
[TimeControl "90 min per 40 moves + 15 min + 30 sec / move from move 1"]
[WhiteFideId "23735732"]
[BlackFideId "23709464"]
[WhiteElo "1478"]
[BlackElo "1970"]

1. e4 {[%clk 01:30:57]} {[%emt 00:00:02]} e6 {[%clk 01:29:59]} {[%emt
00:01:01]} 2. d4 {[%clk 01:30:58]} {[%emt 00:00:28]} d5 {[%clk 01:30:23]}
{[%emt 00:00:06]} 3. e5 {[%clk 01:30:41]} {[%emt 00:00:47]} c5 {[%clk
01:30:48]} {[%emt 00:00:05]} 4. c3 {[%clk 01:30:38]} {[%emt 00:00:33]} Nc6
{[%clk 01:31:12]} {[%emt 00:00:05]} 5. Nf3 {[%clk 01:30:14]} {[%emt 00:00:54]}
Bd7 {[%clk 01:31:38]} {[%emt 00:00:05]} 6. Be2 {[%clk 01:28:07]} {[%emt
00:02:37]} Nge7 {[%clk 01:31:56]} {[%emt 00:00:12]} 7. Na3 {[%clk 01:24:48]}
{[%emt 00:03:49]} Ng6 {[%clk 01:29:15]} {[%emt 00:03:11]} 8. Nc2 {[%clk
01:23:52]} {[%emt 00:01:26]} Be7 {[%clk 01:28:38]} {[%emt 00:01:07]} 9. O-O
{[%clk 01:19:39]} {[%emt 00:04:43]} O-O {[%clk 01:29:00]} {[%emt 00:00:08]} 10.
Be3 {[%clk 01:15:44]} {[%emt 00:04:24]} cxd4 {[%clk 01:26:56]} {[%emt
00:02:35]} 11. cxd4 {[%clk 01:11:50]} {[%emt 00:04:24]} Qb6 {[%clk 01:21:50]}
{[%emt 00:05:37]} 12. Rb1 {[%clk 01:02:58]} {[%emt 00:09:22]} Rac8 {[%emt
00:12:43]} 13. a3 {[%clk 00:41:15]} {[%emt 00:03:02]} Na5 {[%clk 01:18:34]} 14.
b4 Nc4 {[%clk 01:18:42]} 15. Bxc4 {[%clk 00:41:15]} Rxc4 {[%clk 01:18:42]} 16.
Qd2 Rfc8 {[%clk 01:18:42]} 17. Rfc1 {[%clk 00:41:15]} Qa6 {[%clk 01:18:42]} 18.
Nfe1 {[%clk 00:41:15]} b6 {[%clk 01:18:42]} 19. f4 {[%clk 00:22:58]} {[%emt
00:43:26]} Nh4 {[%clk 01:00:28]} {[%emt 00:09:41]} 20. g3 {[%clk 00:14:57]}
{[%emt 00:08:31]} Nf5 {[%clk 00:56:50]} {[%emt 00:04:07]} 21. Bf2 {[%clk
00:15:05]} {[%emt 00:00:22]} Rc3 {[%clk 00:42:41]} {[%emt 00:14:39]} 22. Ng2
{[%clk 00:09:22]} {[%emt 00:06:13]} Qc4 {[%clk 00:39:18]} {[%emt 00:03:54]} 23.
Rb2 {[%clk 00:05:50]} {[%emt 00:04:01]} Ba4 {[%clk 00:39:19]} {[%emt 00:00:29]}
24. Nge1 {[%clk 00:04:50]} {[%emt 00:01:30]} Qc7 {[%clk 00:35:03]} {[%emt
00:04:46]} 25. Kg2 {[%clk 00:04:26]} {[%emt 00:00:55]} h5 {[%clk 00:33:09]}
{[%emt 00:02:23]} 26. h4 {[%clk 00:03:15]} {[%emt 00:01:40]} Nh6 {[%clk
00:32:47]} {[%emt 00:00:52]} 27. Bg1 {[%clk 00:02:02]} {[%emt 00:01:43]} Ng4
{[%clk 00:32:58]} {[%emt 00:00:19]} 28. Bf2 {[%clk 00:02:13]} {[%emt 00:00:20]}
Qc4 {[%clk 00:31:51]} {[%emt 00:01:37]} 29. Bg1 {[%clk 00:01:42]} {[%emt
00:01:00]} f6 {[%clk 00:28:30]} {[%emt 00:03:51]} 30. Bf2 {[%clk 00:01:11]}
{[%emt 00:01:00]} fxe5 {[%clk 00:28:37]} {[%emt 00:00:23]} 31. fxe5 {[%clk
00:01:31]} {[%emt 00:00:10]} Rf8 {[%clk 00:21:30]} {[%emt 00:07:37]} 32. Bg1
{[%clk 00:01:03]} Qf1+ {[%clk 00:21:46]} {[%emt 00:01:13]} 0-1